bitfinex/quotes_ETHUSD_20250424
["timestamp","ask_amount","ask_price","bid_price","bid_amount"]
[1745471094854,5.63920374,1773.3,1772.9,7.21139903]
[1745471096601,5.63920374,1773.3,1772.9,1.57093347]
[1745471096771,5.63953691,1773.2,1772.9,1.57093347]
[1745471097193,10.61401306,1773.4,1772.9,7.21114716]
[1745471097355,16.25317615,1773.4,1772.9,7.21114716]
[1745471097554,5.63971682,1773.2,1772.9,0.7972]
[1745471097858,5.63976631,1773.2,1772.9,0.7972]
[1745471099801,5.63981425,1773.2,1772.9,0.7972]
[1745471099954,5.63998681,1773.1,1772.9,0.7972]
[1745471100280,5.63998681,1773.1,1772.7,0.7972]
[1745471100480,5.64028055,1773.0,1772.7,1.44104815]
[1745471100988,5.64003878,1773.1,1772.7,1.44104815]
[1745471101187,5.64003878,1773.1,1772.7,7.08201397]
[1745471101383,11.28013627,1773.1,1772.7,7.08201397]
[1745471101692,5.64003878,1773.1,1772.7,7.08215474]
[1745471102460,5.63963036,1773.2,1772.8,6.34896913]
[1745471102767,5.63963036,1773.2,1772.8,0.70821547]
[1745471102978,5.6397383,1773.2,1772.8,0.70821547]
[1745471103351,5.6397383,1773.2,1772.7,6.43801783]
[1745471103558,5.6397383,1773.2,1772.7,12.07892139]
[1745471104053,5.63986897,1773.1,1772.7,12.07891639]
[1745471104253,5.63986897,1773.1,1772.7,6.43801783]
[1745471104682,5.63986897,1773.1,1772.7,12.07890662]
[1745471104877,5.63986897,1773.1,1772.7,7.71945088]
[1745471105057,5.63986897,1773.1,1772.7,6.43801783]
[1745471105274,5.6405479,1772.9,1772.7,0.7972]
[1745471105475,5.64095529,1772.8,1772.5,0.8167]
[1745471106369,6.44928483,1772.9,1772.5,0.8167]
[1745471106698,5.64068483,1772.9,1772.5,6.45830866]
[1745471106902,5.64068483,1772.9,1772.5,7.74186834]
[1745471107605,6.44892618,1773.0,1772.5,2.10025968]
[1745471107606,5.64085182,1772.8,1772.5,2.10025968]
[1745471108469,5.64085182,1772.8,1772.4,3.73542392]
[1745471108791,5.64116377,1772.7,1772.4,3.8167]
[1745471109001,5.6414965,1772.6,1772.4,0.8167]
[1745471109162,5.6414965,1772.6,1772.3,3.0]
[1745471109363,5.64229418,1772.4,1772.2,0.8167]
[1745471109559,5.64228556,1772.4,1772.0,0.8167]
[1745471109788,5.6422648,1772.4,1772.0,1.46271181]
[1745471109978,5.64238609,1772.3,1772.0,1.46271181]
[1745471110176,5.64238609,1772.3,1772.0,4.46271181]
[1745471110483,5.64281999,1772.2,1772.0,3.8167]
[1745471111008,5.64254844,1772.3,1771.9,3.0]
[1745471111215,5.64273603,1772.2,1771.9,3.0]
[1745471112113,0.73542392,1772.5,1771.7,0.84789555]
[1745471112319,6.45179749,1772.1,1771.7,6.49213369]
[1745471112482,6.45179749,1772.1,1771.7,7.22301706]
[1745471113289,5.6434996,1772.0,1771.7,0.73088337]
[1745471113478,5.6434996,1772.0,1771.6,1.55212392]
[1745471113679,5.64417,1771.8,1771.6,0.8167]
[1745471113907,5.64417,1771.8,1771.4,6.46192432]
[1745471114180,4.972,1772.2,1771.8,6.46062007]
[1745471114181,10.61489068,1772.2,1771.8,6.46062007]
[1745471114408,10.61489068,1772.2,1771.8,3.8167]
[1745471114715,5.64319226,1772.1,1771.8,0.8167]
[1745471115678,5.6433643,1772.0,1771.8,0.8167]
[1745471115935,5.64322884,1772.1,1771.8,0.8167]
[1745471116722,5.64322884,1772.1,1771.7,0.7952]
[1745471116898,5.64369481,1771.9,1771.6,3.0]
[1745471117219,0.7538,1771.8,1771.3,5.64545393]
[1745471117402,5.64413637,1771.8,1771.4,6.4403072]
[1745471117621,6.39761698,1771.9,1771.5,5.64489441]
[1745471117793,10.61476269,1772.2,1771.6,6.43963293]
[1745471117794,11.28654105,1772.1,1771.6,6.43963293]
[1745471117996,5.64347862,1772.0,1771.6,7.6480809]
[1745471118177,5.64389532,1771.9,1771.6,0.7952]
[1745471122048,5.64360597,1772.0,1771.6,0.7952]
[1745471122353,5.64366554,1771.9,1771.6,0.7952]
[1745471124854,5.64349697,1772.0,1771.6,6.43981133]
[1745471125016,0.7538,1772.2,1771.9,5.6434318]
[1745471125352,5.64252617,1772.3,1771.9,7.64090399]
[1745471125854,11.36904663,1772.4,1771.9,7.6408862]
[1745471126155,5.64242366,1772.3,1771.9,7.6408862]
[1745471128059,11.2850695,1772.3,1771.9,7.6408862]
[1745471128220,5.64242366,1772.3,1771.9,7.6408862]
[1745471129121,11.36896285,1772.4,1772.0,5.64322183]
[1745471129458,0.7538,1772.7,1772.2,1.53062392]
[1745471129620,6.39511654,1772.7,1772.2,7.17318768]
[1745471130347,6.39511654,1772.7,1772.3,5.64216818]
[1745471130524,5.64158762,1772.6,1772.2,7.17318768]
[1745471130726,6.39510757,1772.7,1772.2,7.17308472]
[1745471130958,6.39510757,1772.7,1772.3,5.64237715]
[1745471131158,6.39510757,1772.7,1772.2,7.8904116]
[1745471131369,6.39510757,1772.7,1772.2,13.53288258]
[1745471131571,12.03650461,1772.7,1772.2,7.89040337]
[1745471131774,6.39510757,1772.7,1772.2,13.53285991]
[1745471131970,6.39510757,1772.7,1772.3,1.35328599]
[1745471132267,5.64130757,1772.7,1772.4,0.8002]
[1745471132769,11.28269347,1772.7,1772.4,0.8002]
[1745471132935,5.64130757,1772.7,1772.4,0.8002]
[1745471133339,5.64130757,1772.7,1772.2,7.09515796]
[1745471133340,0.7863,1772.8,1772.1,0.8002]
[1745471133542,5.64189549,1772.5,1772.1,9.44310976]
[1745471133744,5.64189549,1772.5,1772.1,6.44310976]
[1745471135248,6.42819549,1772.5,1772.1,6.44310976]
[1745471135577,5.64270398,1772.2,1772.1,0.8002]
[1745471135783,5.64206725,1772.4,1772.1,0.8002]
[1745471136138,11.28441116,1772.4,1772.1,0.8002]
[1745471136344,5.64251929,1772.3,1772.0,0.8002]
[1745471136648,5.64226514,1772.4,1772.0,6.44353417]
[1745471138381,5.64226514,1772.4,1772.0,7.17895809]
[1745471138681,5.64192627,1772.5,1772.1,5.64300875]
[1745471138984,5.64192627,1772.5,1772.1,6.44320875]
[1745471140271,5.64192627,1772.5,1772.1,7.72539057]
[1745471141181,10.61057245,1772.6,1772.2,5.64270057]
[1745471141385,5.64157245,1772.6,1772.2,5.64270057]
[1745471141585,6.42753008,1772.7,1772.3,5.64229432]
[1745471141880,5.64123008,1772.7,1772.4,0.7817]
[1745471142054,6.46864248,1772.8,1772.4,6.42371587]
[1745471142254,5.64123313,1772.7,1772.4,1.98830102]
[1745471142498,5.64123313,1772.7,1772.4,0.7817]
[1745471145256,11.28263064,1772.7,1772.4,0.7817]
[1745471145891,5.6414337,1772.6,1772.4,0.7817]
[1745471146392,5.64130879,1772.7,1772.4,0.7817]
[1745471146694,5.64152944,1772.6,1772.4,0.7817]
[1745471147362,5.6412721,1772.7,1772.4,0.7817]
[1745471149313,11.28265311,1772.7,1772.4,0.7817]
[1745471149498,5.64144212,1772.6,1772.4,0.7817]
[1745471149697,5.6412721,1772.7,1772.4,0.7817]
[1745471150088,5.64145222,1772.6,1772.4,0.7817]
[1745471150290,5.64131445,1772.7,1772.4,0.7817]
[1745471151011,11.28271764,1772.7,1772.4,0.7817]
[1745471151215,5.64131445,1772.7,1772.4,0.7817]
[1745471152424,11.43765544,1772.8,1772.4,0.7817]
[1745471152425,5.64101447,1772.8,1772.4,0.7817]
[1745471152714,29.21769033,1772.9,1772.5,5.64173804]
[1745471153619,0.7762,1773.0,1772.6,0.73542392]
[1745471153918,3.80409437,1773.3,1773.1,5.63959811]
[1745471154081,3.80409437,1773.3,1773.2,0.8197]
[1745471155412,3.80409437,1773.3,1773.2,10.84057549]
[1745471156003,3.80409437,1773.3,1773.2,15.80957549]
[1745471156623,3.80409437,1773.6,1773.5,6.4582678]
[1745471156818,3.80409437,1773.6,1773.5,7.19369172]
[1745471159302,5.63647895,1774.2,1773.7,5.63788341]
[1745471159632,5.63668899,1774.1,1773.7,5.63788341]
[1745471160510,5.63668899,1774.1,1773.6,9.35741615]
[1745471161017,11.27361623,1774.1,1773.6,9.35741615]
[1745471161224,5.63668899,1774.1,1773.6,9.35741615]
[1745471161517,5.63789008,1773.8,1773.5,0.8197]
[1745471161723,0.7616,1774.2,1773.7,6.37323722]
[1745471161910,5.63666423,1774.1,1773.8,0.7799]
[1745471162105,5.6365095,1774.2,1773.8,0.7799]
[1745471162320,5.6365095,1774.2,1773.8,7.13258983]
[1745471162520,5.63672483,1774.1,1773.8,1.49520309]
[1745471162913,5.63700799,1774.0,1773.8,1.49520309]
[1745471163113,5.63672329,1774.1,1773.8,0.7799]
[1745471163516,5.63700281,1774.0,1773.8,0.7799]
[1745471164013,5.63668127,1774.1,1773.8,0.7799]
[1745471164553,5.63712578,1774.0,1773.6,3.7853]
[1745471164909,5.63682929,1774.1,1773.6,15.061536]
[1745471165221,5.63682929,1774.1,1773.7,7.14391769]
[1745471166411,5.63682929,1774.1,1773.7,7.87934161]
[1745471166836,5.63652317,1774.2,1773.7,7.87934161]
[1745471167044,5.63659194,1774.2,1773.7,7.87934161]
[1745471168021,5.63659194,1774.2,1773.8,5.63759813]
[1745471168640,5.63602547,1774.3,1773.8,5.63759813]
[1745471168943,6.45947531,1774.6,1774.1,6.37196665]
[1745471169116,5.63546077,1774.5,1774.2,0.7853]
[1745471170109,6.45947579,1774.6,1774.2,0.7853]
[1745471170733,5.6355076,1774.5,1774.0,7.1575578]
[1745471170928,6.45942164,1774.6,1774.1,5.63663763]
[1745471171337,5.63508198,1774.6,1774.2,6.42143611]
[1745471171918,5.63508198,1774.6,1774.2,12.05754471]
[1745471172120,5.63508198,1774.6,1774.2,6.4214086]
[1745471172440,10.59693893,1774.7,1774.2,6.4214086]
[1745471172640,10.59693893,1774.7,1774.3,5.63590593]
[1745471172844,11.42079715,1774.8,1774.4,5.63568659]
[1745471173347,6.45879715,1774.8,1774.4,5.63568659]
[1745471173549,11.42079715,1774.8,1774.4,5.63568659]
[1745471174147,5.63477716,1774.7,1774.3,5.63588926]
[1745471174349,11.42084331,1774.8,1774.3,11.27170934]
[1745471174648,11.42084331,1774.8,1774.4,5.63565759]
[1745471176014,5.7862,1774.8,1774.2,2.16286478]
[1745471176358,42.0,1775.0,1774.6,5.63487261]
[1745471176359,4.961,1774.9,1774.6,5.63487261]
[1745471176558,47.63381597,1775.0,1774.6,5.63487261]
[1745471176761,42.0,1775.0,1774.9,5.63412023]
[1745471176962,42.0,1775.0,1774.8,6.3698616]
[1745471177116,42.0,1775.0,1774.8,5.63412524]
[1745471177316,42.0,1775.0,1774.9,6.39962023]
[1745471180155,42.0,1775.0,1774.9,9.39962023]
[1745471182574,0.4040584,1775.2,1775.1,6.39898543]
[1745471182768,0.4040584,1775.2,1775.1,10.13440935]
[1745471183280,0.005,1775.3,1775.2,9.39866809]
[1745471183582,0.005,1775.3,1775.2,15.93542583]
[1745471184379,0.005,1775.3,1775.2,10.97542583]
[1745471187578,0.005,1775.3,1775.2,11.71084975]
[1745471187781,0.005,1775.3,1775.2,10.97542583]
[1745471188679,0.005,1775.3,1775.2,11.71084975]
[1745471189583,1e-08,1775.4,1775.3,9.39835078]
[1745471189787,1e-08,1775.4,1775.3,11.13272083]
[1745471192807,1e-08,1775.4,1775.3,16.08672083]
[1745471194017,1e-08,1775.4,1775.3,13.08672083]
[1745471194316,1e-08,1775.4,1775.3,16.82214475]
[1745471194521,1e-08,1775.4,1775.3,13.82214475]
[1745471194894,1e-08,1775.4,1775.3,1.73437005]
[1745471195220,1e-08,1775.4,1775.3,6.3682747]
[1745471195724,1e-08,1775.4,1775.3,7.1210747]
[1745471196096,1e-08,1775.4,1775.3,10.1210747]
[1745471197107,1e-08,1775.4,1775.3,9.38565078]
[1745471197309,1e-08,1775.4,1775.3,11.78062477]
[1745471198223,1e-08,1775.4,1775.3,5.39497399]
[1745471198425,1e-08,1775.4,1775.3,9.3682747]
[1745471199728,1e-08,1775.4,1775.3,3.0]
[1745471199905,1e-08,1775.4,1775.1,12.00198267]
[1745471200237,1e-08,1775.4,1775.2,14.2660873]
[1745471200531,1e-08,1775.4,1775.2,14.265943]
[1745471200734,1e-08,1775.4,1775.2,8.63293017]
[1745471201031,1e-08,1775.4,1775.2,3.0]
[1745471202433,1e-08,1775.4,1775.1,3.0]
[1745471202434,0.7839,1775.3,1775.1,3.0]
[1745471202640,1e-08,1775.4,1775.2,5.63286738]
[1745471202825,1e-08,1775.4,1775.3,0.73542392]
[1745471204342,1e-08,1775.4,1775.3,6.3682747]
[1745471204702,1e-08,1775.4,1775.1,8.63325625]
[1745471204703,1e-08,1775.4,1775.1,3.73542392]
[1745471204903,1e-08,1775.4,1775.1,9.36890341]
[1745471205103,1e-08,1775.4,1775.1,3.73542392]
[1745471205304,1e-08,1775.4,1775.1,9.36870573]
[1745471205928,1e-08,1775.4,1775.1,3.73542392]
[1745471206242,0.7839,1775.3,1775.0,4.954]
[1745471206442,0.7839,1775.3,1775.0,10.58766374]
[1745471208039,0.7839,1775.3,1775.1,6.36886338]
[1745471208947,1e-08,1775.4,1775.2,5.63303905]
[1745471209845,1e-08,1775.4,1775.1,5.63343946]
[1745471210757,1e-08,1775.4,1775.1,5.63324286]
[1745471211331,1e-08,1775.4,1775.1,7.32887522]
[1745471212839,1e-08,1775.4,1775.1,12.96225037]
[1745471213026,1e-08,1775.4,1775.1,7.32887522]
[1745471213222,1e-08,1775.4,1775.1,1.69563236]
[1745471213437,1e-08,1775.4,1775.1,7.32894117]
[1745471214142,1e-08,1775.4,1775.2,5.63315934]
[1745471214847,1e-08,1775.4,1775.2,6.36858326]
[1745471215057,1e-08,1775.4,1775.3,5.63285078]
[1745471215261,1e-08,1775.4,1775.3,8.63285078]
[1745471215823,1e-08,1775.4,1775.3,3.0]
[1745471216056,1e-08,1775.4,1775.2,7.7383357]
[1745471216057,0.80040001,1775.4,1775.1,5.63333511]
[1745471216560,0.80040001,1775.4,1775.1,3.0]
[1745471216762,0.8004,1775.2,1774.8,6.36974985]
[1745471216942,0.8004,1775.2,1774.9,3.0]
[1745471217562,0.8004,1775.2,1774.9,5.63400296]
[1745471217736,0.8004,1775.2,1775.0,3.0]
[1745471218063,0.8004,1775.2,1775.0,8.63379418]
[1745471218564,0.8004,1775.2,1775.0,3.0]
[1745471219436,0.8004,1775.2,1775.0,8.63375141]
[1745471220237,0.8004,1775.2,1775.1,5.63348543]
[1745471220441,1e-08,1775.4,1775.1,5.63348543]
[1745471220442,0.80040001,1775.4,1775.2,5.63302635]
[1745471220963,0.80040001,1775.4,1775.2,5.63294706]
[1745471221263,1e-08,1775.4,1775.2,5.63292884]
[1745471221764,1e-08,1775.4,1775.1,6.3687533]
[1745471225361,1e-08,1775.4,1775.0,10.13395297]
[1745471225572,0.753,1775.3,1775.0,8.63364257]
[1745471226244,0.753,1775.3,1775.0,5.63369299]
[1745471226967,0.753,1775.3,1775.0,3.0]
[1745471227157,6.38596602,1775.3,1775.0,3.0]
[1745471227547,0.753,1775.3,1775.0,3.0]
[1745471227761,0.753,1775.3,1775.0,8.63379142]
[1745471227955,0.753,1775.3,1775.0,8.63360947]
[1745471228648,0.753,1775.3,1775.0,3.0]
[1745471229888,5.63331293,1775.2,1774.8,3.0]
[1745471230185,0.7813,1775.1,1774.9,5.63401487]
[1745471230339,0.7813,1775.1,1774.9,6.36933937]
[1745471232772,0.7813,1775.3,1775.0,5.63377049]
[1745471232957,1.42269992,1775.3,1774.9,6.36933937]
[1745471233153,0.7813,1775.3,1774.9,6.36933937]
[1745471233749,6.41415533,1775.3,1774.9,6.36933937]
[1745471234174,6.41415533,1775.3,1774.9,3.73542392]
[1745471234374,6.41415533,1775.3,1774.8,5.63434033]
[1745471234577,0.7813,1775.2,1774.8,5.63434033]
[1745471235887,6.41447544,1775.2,1774.8,5.63434033]
[1745471236093,0.7813,1775.1,1774.8,5.63434033]
[1745471236296,0.7813,1775.1,1774.9,5.63391537]
[1745471236504,0.7813,1775.1,1774.9,6.36929797]
[1745471236995,5.63267151,1775.4,1774.7,3.0]
[1745471236996,0.7627,1775.0,1774.7,3.0]
[1745471237209,5.63453542,1774.8,1774.4,6.37104506]
[1745471237367,0.7627,1774.7,1774.4,7.66721194]
[1745471237573,0.7627,1774.7,1774.4,2.0315908]
[1745471238093,0.7627,1774.7,1774.4,7.66729422]
[1745471238395,0.7627,1774.7,1774.3,4.952]
[1745471238598,0.7627,1774.7,1774.3,10.58783587]
[1745471238909,0.7627,1774.7,1774.4,6.37112963]
[1745471239603,0.7627,1774.9,1774.6,6.37047676]
[1745471239893,0.7627,1774.9,1774.7,5.63472793]
[1745471240096,0.7627,1774.9,1774.6,6.37031777]
[1745471240399,0.7627,1774.9,1774.6,7.57087163]
[1745471242316,0.7627,1774.9,1774.6,13.20575649]
[1745471242483,0.7627,1775.3,1775.0,5.63361665]
[1745471242689,0.7627,1775.3,1775.0,6.3690026]
[1745471243379,0.7627,1775.3,1775.0,6.36897817]
[1745471243580,0.7627,1775.3,1775.0,7.00587599]
[1745471243984,6.3957912,1775.3,1774.9,3.0]
[1745471244486,0.7627,1775.3,1774.9,8.634107]
[1745471245118,5.63328075,1775.2,1774.8,0.73542392]
[1745471245326,0.7627,1775.1,1774.8,3.0]
[1745471245495,0.7627,1775.1,1774.7,10.58760066]
[1745471245820,6.39619167,1775.1,1774.7,11.60720313]
[1745471246127,0.7627,1775.1,1774.7,11.60720313]
[1745471246286,0.7627,1775.1,1774.8,5.63438537]
[1745471247121,0.7627,1775.1,1774.7,11.60717678]
[1745471248505,0.7627,1775.1,1774.7,5.97260247]
[1745471248711,0.7627,1775.0,1774.7,4.953]
[1745471250440,0.7627,1775.0,1774.7,10.58763603]
[1745471251659,6.39665759,1775.0,1774.7,4.953]
[1745471251872,6.39665759,1775.0,1774.6,3.73542392]
[1745471252635,6.39665759,1775.0,1774.6,9.37049482]
[1745471253441,0.7627,1775.0,1774.7,5.63472162]
[1745471254255,6.3965316,1775.0,1774.6,10.87089015]
[1745471254454,0.7627,1775.0,1774.6,10.87089015]
[1745471254660,0.7627,1775.0,1774.7,5.6347204]
[1745471254865,0.7627,1775.0,1774.6,10.8708819]
[1745471256296,0.7627,1775.0,1774.6,16.50571098]
[1745471256594,6.39654427,1775.0,1774.6,5.23598774]
[1745471256890,0.8112,1774.8,1774.5,3.0]
[1745471257461,0.8112,1774.8,1774.5,8.63536431]
[1745471257704,0.8112,1774.8,1774.5,3.0]
[1745471257854,6.44586886,1774.8,1774.4,0.73542392]
[1745471258049,6.44586886,1774.8,1774.4,3.73542392]
[1745471258755,6.44586886,1774.8,1774.4,9.37109856]
[1745471258956,0.8112,1774.8,1774.5,5.6353371]
[1745471259492,0.8112,1774.8,1774.4,9.37096297]
[1745471259698,6.44567846,1774.8,1774.4,9.37096297]
[1745471260297,0.8112,1774.8,1774.4,9.37096297]
[1745471260460,0.8112,1774.8,1774.4,10.87164646]
[1745471261994,6.44564693,1774.8,1774.4,10.87164646]
[1745471262196,6.44564693,1774.8,1774.4,5.23610741]
[1745471262704,6.44564693,1774.8,1774.4,10.87180581]
[1745471263571,0.8112,1774.7,1774.4,5.23610741]
[1745471263894,6.44596053,1774.7,1774.4,3.73542392]
[1745471264092,0.8112,1774.7,1774.4,3.73542392]
[1745471264398,0.8112,1774.7,1774.4,0.73542392]
[1745471264559,6.44602811,1774.7,1774.4,0.73542392]
[1745471265057,6.44602811,1774.7,1774.3,3.0]
[1745471265566,0.8112,1774.5,1774.3,3.0]
[1745471265899,0.8112,1774.5,1774.2,10.58731567]
[1745471266899,5.63461001,1774.8,1774.3,6.37124888]
[1745471266900,6.44576331,1774.8,1774.3,6.37124888]
[1745471267201,6.46427994,1774.7,1774.3,0.73542392]
[1745471268690,6.46427994,1774.7,1774.3,6.37144667]
[1745471269019,0.8293,1774.7,1774.3,8.06730201]
[1745471269229,6.46407722,1774.7,1774.3,8.06730201]
[1745471270621,0.8293,1774.7,1774.3,8.06730201]
[1745471271604,0.8293,1774.7,1774.3,2.43127926]
[1745471271605,6.46430105,1774.7,1774.3,2.43127926]
[1745471271805,5.63533449,1774.6,1774.2,5.68642392]
[1745471272007,0.8293,1774.5,1774.2,5.68642392]
[1745471272205,0.8293,1774.7,1774.2,11.3226034]
[1745471272409,0.8293,1774.7,1774.3,5.63590347]
[1745471272885,6.46408583,1774.7,1774.3,5.63590347]
[1745471274227,6.46408583,1774.7,1774.2,12.75474078]
[1745471274398,6.46408583,1774.7,1774.3,5.63602443]
[1745471278447,6.46408583,1774.7,1774.2,12.75482684]
[1745471278643,6.46408583,1774.7,1774.2,12.75480808]
[1745471280038,12.09912267,1774.7,1774.2,12.75480808]
[1745471280336,6.46408583,1774.7,1774.2,12.75480808]
[1745471280638,5.63509809,1774.6,1774.2,5.68642392]
[1745471280938,6.4642262,1774.7,1774.2,11.32255018]
[1745471281433,5.63645772,1774.2,1773.9,4.949]
[1745471281659,5.63645772,1774.2,1773.8,1.55832392]
[1745471281660,6.43558685,1774.1,1773.8,0.73542392]
[1745471281935,6.43558685,1774.1,1773.8,3.0]
[1745471282106,6.43558685,1774.1,1773.7,5.63792378]
[1745471282301,6.43558685,1774.1,1773.7,1.21452477]
[1745471282532,6.43558685,1774.1,1773.7,4.21452477]
[1745471282738,6.43558685,1774.1,1773.7,1.21452477]
[1745471282936,0.7988,1774.1,1773.8,6.37303031]
[1745471284449,0.7988,1774.1,1773.8,0.73542392]
[1745471285147,0.7988,1773.8,1773.7,3.0]
[1745471285723,6.43655107,1773.8,1773.6,0.73542392]
[1745471285928,6.43655107,1773.8,1773.5,0.84697758]
[1745471285929,0.7988,1773.8,1773.5,0.84697758]
[1745471286128,5.63724128,1774.0,1773.6,6.37365927]
[1745471286129,0.7988,1774.0,1773.6,6.37365927]
[1745471286627,6.43580235,1774.0,1773.6,0.73542392]
[1745471287966,5.63734057,1773.9,1773.6,0.73542392]
[1745471288341,6.43591444,1774.0,1773.6,0.73542392]
[1745471288546,7.14385733,1774.0,1773.6,0.73542392]
[1745471288945,0.7988,1774.2,1773.8,0.73542392]
[1745471289149,0.7988,1774.2,1774.0,0.73542392]
[1745471289452,6.43515211,1774.2,1774.0,0.73542392]
[1745471289641,6.43515211,1774.2,1773.8,0.73542392]
[1745471291270,12.07178793,1774.2,1773.8,0.73542392]
[1745471291481,5.63681695,1774.1,1773.8,0.73542392]
[1745471292557,6.43535196,1774.2,1773.8,0.73542392]
[1745471293700,5.636673,1774.1,1773.8,0.73542392]
[1745471294194,6.43538622,1774.2,1773.8,0.73542392]
[1745471294489,0.7988,1774.2,1773.8,0.73542392]
[1745471294657,6.43533433,1774.2,1773.8,0.73542392]
[1745471296390,1.44233343,1774.1,1773.6,3.0]
[1745471296693,6.43567487,1774.1,1773.7,4.48842392]
[1745471297394,6.43567487,1774.1,1773.7,7.12634852]
[1745471297598,0.7988,1774.1,1773.7,7.12634852]
[1745471298160,6.43553453,1774.1,1773.7,1.48842392]
[1745471299496,6.43553453,1774.1,1773.7,7.12633172]
[1745471299695,6.43553453,1774.1,1773.7,8.70276748]
[1745471302212,0.7988,1774.1,1773.7,8.70276748]
[1745471302604,6.43547111,1774.1,1773.7,8.70276748]
[1745471302904,6.43547111,1774.1,1773.7,3.06485968]
[1745471303486,6.43547111,1774.1,1773.7,8.7027662]
[1745471304318,0.7988,1774.1,1773.7,8.7027662]
[1745471304821,6.43549592,1774.1,1773.7,3.06485968]
[1745471304993,6.43549592,1774.1,1773.7,4.48842392]
[1745471305182,5.63700916,1774.0,1773.7,1.48842392]
[1745471305387,5.63700916,1774.0,1773.6,3.0]
[1745471305606,5.63700916,1774.0,1773.7,3.0]
[1745471305981,5.63717353,1774.0,1773.6,3.0]
[1745471308227,5.63732804,1773.9,1773.6,3.0]
[1745471309323,5.63717353,1774.0,1773.6,3.0]
[1745471311110,5.63697857,1774.0,1773.6,3.0]
[1745471311418,5.63733947,1773.9,1773.6,3.0]
[1745471311620,6.43561252,1774.1,1773.7,3.73542392]
[1745471312810,0.7988,1774.1,1773.5,7.97382653]
[1745471313013,6.435641,1774.1,1773.6,3.0]
[1745471313216,0.7988,1774.1,1773.6,3.0]
[1745471313525,5.63716677,1774.0,1773.6,3.0]
[1745471314029,5.63716677,1774.0,1773.6,9.73561371]
[1745471314227,5.63716677,1774.0,1773.7,0.7926]
[1745471314394,5.6368821,1774.1,1773.7,1.52802392]
[1745471314898,5.63701258,1774.0,1773.7,1.52802392]
[1745471317134,5.63686658,1774.1,1773.7,1.52802392]
[1745471317337,11.27382359,1774.1,1773.7,1.52802392]
[1745471317800,5.63686658,1774.1,1773.7,1.52802392]
[1745471318246,11.27381761,1774.1,1773.7,1.52802392]
[1745471318454,5.63686658,1774.1,1773.7,1.52802392]
[1745471318751,6.43159308,1774.3,1773.7,8.29213237]
[1745471318954,6.43159308,1774.3,1773.9,0.73542392]
[1745471319656,5.63638538,1774.2,1773.9,0.73542392]
[1745471322537,5.63638538,1774.2,1773.7,8.292066]
[1745471323861,5.63671092,1774.1,1773.7,8.292066]
[1745471325075,5.6369904,1774.0,1773.7,0.7926]
[1745471325274,5.63697857,1774.0,1773.6,1.52802392]
[1745471325571,5.63759887,1773.9,1773.6,0.7926]
[1745471325774,11.27567174,1773.8,1773.6,0.7926]
[1745471325982,6.43314043,1773.8,1773.5,3.84697758]
[1745471326182,6.43314043,1773.8,1773.5,0.84697758]
[1745471326688,6.43314043,1773.8,1773.2,0.7956]
[1745471326689,6.43313846,1773.8,1773.2,0.7956]
[1745471326842,5.63876364,1773.5,1773.2,0.7956]
[1745471327045,5.63920374,1773.3,1773.2,0.7956]
[1745471327376,0.7954,1773.8,1773.2,0.7956]
[1745471327536,5.63858108,1773.5,1773.2,0.7956]
[1745471329076,5.6384361,1773.6,1773.2,0.7956]
[1745471329977,5.63860165,1773.5,1773.2,0.7956]
[1745471330193,0.7929,1773.4,1772.8,0.8265]
[1745471330347,5.63954444,1773.2,1772.8,1.56192392]
[1745471330684,5.63939054,1773.3,1772.8,4.56192392]
[1745471330895,5.63939054,1773.3,1773.0,0.73542392]
[1745471331259,5.63901008,1773.4,1773.1,0.8265]
[1745471331456,11.38027025,1773.6,1773.2,0.73542392]
[1745471331684,5.63837025,1773.6,1773.2,0.73542392]
[1745471334347,5.63837025,1773.6,1773.2,6.37492427]
[1745471334679,5.63837025,1773.6,1773.2,7.65902523]
[1745471334886,5.63774287,1773.8,1773.4,0.73542392]
[1745471335286,11.27565205,1773.8,1773.4,0.73542392]
[1745471335460,5.63795525,1773.7,1773.4,0.73542392]
[1745471349115,5.63780492,1773.8,1773.4,3.73542392]
[1745471349323,5.63780492,1773.8,1773.5,0.7702]
[1745471351120,5.63737608,1773.9,1773.5,6.40876409]
[1745471351320,19.3732,1774.1,1773.2,1.28410096]
[1745471351321,23.546,1774.1,1773.8,0.73542392]
[1745471351525,4.947,1774.1,1773.9,0.8242]
[1745471351938,9.44025203,1774.3,1773.9,0.8242]
[1745471352234,5.63634477,1774.2,1773.9,0.8242]
[1745471352411,9.44027326,1774.3,1773.9,0.8242]
[1745471352956,5.63617889,1774.3,1773.9,0.8242]
[1745471353834,5.63647392,1774.2,1773.9,0.8242]
[1745471355408,5.63624452,1774.3,1773.9,0.8242]
[1745471355714,5.63658982,1774.2,1773.9,0.8242]
[1745471356032,5.63667462,1774.1,1773.9,0.8242]
[1745471356233,5.63650648,1774.2,1773.9,0.8242]
[1745471359540,16.15708299,1774.4,1773.9,0.8242]
[1745471359836,5.6364741,1774.2,1773.9,0.8242]
[1745471361943,5.63668813,1774.1,1773.9,0.8242]
[1745471362143,5.63668813,1774.1,1773.8,1.48982392]
[1745471363646,5.63701026,1774.0,1773.8,0.7544]
[1745471363942,6.46743442,1774.1,1773.7,3.0]
[1745471364844,6.46743442,1774.1,1773.7,8.63792554]
[1745471365808,5.63756229,1773.9,1773.6,1.48982392]
[1745471366213,5.63756229,1773.9,1773.6,0.7544]
[1745471366424,0.8306,1774.1,1773.5,0.7544]
[1745471366425,5.63776309,1773.8,1773.5,0.7544]
[1745471367851,5.63737644,1773.9,1773.5,0.7544]
[1745471368951,11.27495977,1773.9,1773.5,0.7544]
[1745471372325,10.58311536,1774.0,1773.6,0.73542392]
[1745471372526,5.63711536,1774.0,1773.8,0.73542392]
[1745471372856,5.63603192,1774.3,1773.8,0.73542392]
[1745471372857,5.63649773,1774.2,1773.8,0.73542392]
[1745471373043,11.40245011,1774.3,1773.9,0.8242]
[1745471373245,10.58215011,1774.3,1774.0,0.73542392]
[1745471374057,4.946,1774.3,1774.0,0.73542392]
[1745471374927,10.58206358,1774.3,1774.0,0.73542392]
[1745471376362,5.63651768,1774.2,1773.9,0.8242]
[1745471376965,10.58206358,1774.3,1773.9,0.8242]
[1745471377266,10.58206358,1774.3,1773.9,1.543921]
[1745471378473,1.3703,1774.2,1773.4,0.8242]
[1745471378626,1.3703,1774.2,1773.4,6.46297034]
[1745471378627,5.63762532,1773.8,1773.4,6.46297034]
[1745471378826,5.63746702,1773.9,1773.5,0.73542392]